fUSD/lending_fUSD_20250223
["ID","MTS","AMOUNT","RATE_DAILY","PERIOD"]
[354151152,1740290903299,-185.77,0.00011041,2]
[354151153,1740290903322,-584.33795811,0.00011041,2]
[354151154,1740290975875,6625.9571,0.00010858,2]
[354151155,1740290981997,456.1635,0.00010858,2]
[354151156,1740291000533,1239.4799,0.00010858,2]
[354151158,1740291031736,-150.0,0.00011164,2]
[354151159,1740291031746,-200.834975,0.00011205,2]
[354151160,1740291031755,-158.585107,0.00011205,2]
[354151161,1740291031766,-600.0,0.00012,2]
[354151162,1740291031775,-150.0,0.00012226,2]
[354151163,1740291031785,-150.0,0.00012235,2]
[354151164,1740291031794,-500.0,0.00012235,2]
[354151165,1740291031804,-1390.90643809,0.00013103,2]
[354151166,1740291031813,-157.96,0.00013699,2]
[354151167,1740291031822,-650.0,0.00014,2]
[354151168,1740291031831,-974.51741455,0.00014438,2]
[354151169,1740291031841,-103.26008873,0.00014537,2]
[354151170,1740291031857,-196.73991127,0.00014537,2]
[354151171,1740291031866,-120.46008873,0.00014538,2]
[354151172,1740291031877,-1153.53991127,0.00014538,2]
[354151173,1740291031886,-309.151,0.00014538,2]
[354151174,1740291031896,-150.0,0.00014538,2]
[354151175,1740291031906,-639.0,0.00014538,2]
[354151176,1740291031916,-569.0,0.00014538,2]
[354151177,1740291031925,-1788.0,0.00014538,2]
[354151178,1740291031935,-245.469,0.00014538,2]
[354151179,1740291031944,-736.609,0.00014538,2]
[354151180,1740291031954,-4028.0,0.00014538,2]
[354151181,1740291031963,-540.0,0.00014538,2]
[354151182,1740291031973,-418.23,0.00014579,2]
[354151183,1740291031982,-3920.0,0.00014642,2]
[354151184,1740291031992,-150.0,0.00014642,2]
[354151185,1740291032001,-1009.0,0.00014642,2]
[354151186,1740291032010,-2384.9817414,0.00015,3]
[354151187,1740291032022,-2718.0182586,0.00015,3]
[354151188,1740291032032,-193.50379748,0.00015073,2]
[354151189,1740291032044,-781.01361699,0.00015073,2]
[354151190,1740291032054,-974.51741447,0.00015708,2]
[354151191,1740291032064,-222.6732,0.00016044,2]
[354151192,1740291032074,-276.04,0.00016112,2]
[354151193,1740291032083,-250.38524348,0.00016115,2]
[354151194,1740291032093,-150.99,0.00016116,2]
[354151195,1740291032102,-150.99,0.00016116,2]
[354151196,1740291032112,-2814.35,0.00016116,2]
[354151197,1740291032121,-14900.23,0.00016116,2]
[354151198,1740291032131,-999.99,0.00016116,2]
[354151199,1740291032140,-1399.05,0.00016116,2]
[354151200,1740291032149,-1263.06,0.00016116,2]
[354151201,1740291032160,-9999.99,0.00016116,2]
[354151202,1740291032169,-9999.99,0.00016116,2]
[354151203,1740291032178,-631.31,0.00016116,2]
[354151204,1740291032187,-23900.0,0.00016143,2]
[354151205,1740291032195,-500.0,0.00016164,2]
[354151206,1740291032204,-500.0,0.00016164,2]
[354151207,1740291032214,-500.0,0.00016164,2]
[354151208,1740291032224,-166.41,0.00016323,2]
[354151209,1740291032239,-974.51741447,0.00016344,2]
[354151210,1740291032249,-250.0,0.00016404,2]
[354151211,1740291032258,-500.0,0.00016438,2]
[354151212,1740291032268,-499.63630828,0.00016438,2]
[354151213,1740291032281,-0.36369172,0.00016438,2]
[354151214,1740291032291,-329.93518622,0.00016438,2]
[354151215,1740291032300,-803.489,0.00016563,2]
[354151216,1740291032312,-417.24,0.00016613,2]
[354151217,1740291032323,-1000.0,0.00016745,2]
[354151218,1740291032333,-97398.9946976,0.00016745,2]
[354151219,1740291032342,-200.0,0.00016821,2]
[354151220,1740291032352,-418.23,0.00016843,2]
[354151221,1740291032361,-974.51741447,0.00016979,2]
[354151222,1740291032371,-1211.097,0.00017538,2]
[354151223,1740291032380,-974.51741447,0.00017614,2]
[354151224,1740291032390,-3914.0,0.00017642,2]
[354151226,1740291032399,-150.0,0.00017642,2]
[354151228,1740291032408,-205.04019373,0.000179,2]
[354151230,1740291032418,-974.51741447,0.00018249,2]
[354151232,1740291032427,-14521.36633267,0.00018558,2]
[354151234,1740291032438,-520.41993916,0.00018558,2]
[354151236,1740291032450,-963.75,0.00018558,2]
[354151238,1740291032461,-22305.84277585,0.00018558,2]
[354151240,1740291032470,-154.62,0.000186,2]
[354151242,1740291032479,-417.24,0.0001869,2]
[354151244,1740291032488,-166.24,0.00018756,2]
[354151246,1740291032497,-166.372097,0.000188,15]
[354151248,1740291032507,-346.4543947,0.00018834,2]
[354151249,1740291032516,-1000.0,0.00018839,2]
[354151250,1740291032526,-974.51741447,0.00018885,2]
[354151251,1740291032536,-463.7557482,0.00018904,2]
[354151252,1740291032545,-500.0,0.00018904,2]
[354151253,1740291032555,-1123.31,0.00018937,2]
[354151254,1740291032564,-611.84,0.00019008,2]
[354151255,1740291032574,-418.23,0.00019106,2]
[354151256,1740291032583,-200.0,0.000192,2]
[354151257,1740291032593,-157.19574938,0.00019233,5]
[354151258,1740291032602,-436.69,0.00019397,30]
[354151259,1740291032611,-205.04019373,0.000194,2]
[354151260,1740291032621,-2183.84794544,0.0001946,2]
[354151261,1740291032631,-500.0,0.000195,2]
[354151262,1740291032640,-500.0,0.000195,2]
[354151263,1740291032650,-500.0,0.000195,2]
[354151264,1740291032659,-500.0,0.000195,2]
[354151265,1740291032669,-500.0,0.000195,2]
[354151266,1740291032678,-500.0,0.000195,2]
[354151267,1740291032688,-500.0,0.000195,2]
[354151268,1740291032697,-500.0,0.000195,2]
[354151269,1740291032707,-500.0,0.000195,2]
[354151270,1740291032716,-500.0,0.000195,2]
[354151271,1740291032726,-500.0,0.000195,2]
[354151272,1740291032736,-500.0,0.000195,2]
[354151273,1740291032746,-500.0,0.000195,2]
[354151274,1740291032755,-500.0,0.000195,2]
[354151275,1740291032764,-500.0,0.000195,2]
[354151276,1740291032773,-500.0,0.000195,2]
[354151277,1740291032782,-500.0,0.000195,2]
[354151278,1740291032792,-217.55322745,0.00019515,2]
[354151279,1740291032801,-974.51741447,0.0001952,2]
[354151280,1740291032810,-1318.2021109,0.00019599,2]
[354151281,1740291032820,-5745.41358108,0.00019643,30]
[354151282,1740291032829,-5745.41358108,0.00019667,30]
[354151283,1740291032838,-3000.0,0.000197,2]
[354151284,1740291032848,-1500.0,0.000197,2]
[354151285,1740291032857,-500.0,0.00019726,3]
[354151286,1740291032867,-200.0,0.00019744,30]
[354151287,1740291032876,-5745.41358108,0.00019751,30]
[354151288,1740291032886,-150.0,0.00019756,2]
[354151289,1740291032897,-159.49150104,0.0001979,2]
[354151290,1740291032906,-5745.41358108,0.00019798,30]
[354151291,1740291032915,-7500.0,0.00019799,2]
[354151292,1740291032924,-55555.0,0.00019799,2]
[354151293,1740291032934,-2662.45205369,0.00019799,2]
[354151294,1740291032943,-312.68611582,0.00019799,2]
[354151295,1740291032952,-150.37252371,0.00019799,2]
[354151296,1740291032961,-11128.53572214,0.000198,2]
[354151297,1740291032970,-152.97747239,0.00019829,2]
[354151298,1740291032980,-312.68611574,0.00019839,2]
[354151299,1740291032989,-500.0,0.0001984,2]
[354151300,1740291032999,-500.0,0.0001984,2]
[354151301,1740291033018,-500.0,0.0001984,2]
[354151302,1740291033028,-200.0,0.0001984,2]
[354151303,1740291033038,-312.68611574,0.00019878,2]
[354151304,1740291033048,-1451.22166917,0.00019888,21]
[354151305,1740291033057,-46790.5267932,0.00019889,3]
[354151306,1740291033067,-217.55322746,0.00019889,2]
[354151307,1740291033076,-77984.211322,0.0001989,3]
[354151308,1740291033086,-500.0,0.00019899,3]
[354151309,1740291033208,-502.01937361,0.00019899,3]
[354151310,1740291033220,-500.0,0.00019899,3]
[354151311,1740291033232,-500.0,0.00019899,3]
[354151312,1740291033247,-500.0,0.00019899,3]
[354151313,1740291033258,-500.0,0.00019899,3]
[354151314,1740291033268,-501.88237833,0.00019899,3]
[354151315,1740291033279,-266.66626528,0.00019899,3]
[354151316,1740291033295,-231.73833395,0.00019899,3]
[354151317,1740291033307,-500.0,0.00019899,3]
[354151318,1740291033321,-500.0,0.00019899,3]
[354151319,1740291033332,-500.0,0.00019899,3]
[354151320,1740291033344,-500.0,0.00019899,3]
[354151321,1740291033355,-500.0,0.00019899,3]
[354151322,1740291033367,-500.0,0.00019899,3]
[354151323,1740291033378,-500.0,0.00019899,3]
[354151324,1740291033389,-500.0,0.00019899,3]
[354151325,1740291033400,-500.0,0.00019899,3]
[354151326,1740291033414,-500.0,0.00019899,3]
[354151327,1740291033424,-500.0,0.00019899,3]
[354151328,1740291033435,-231.86264195,0.00019899,3]
[354151329,1740291033445,-500.0,0.00019899,3]
[354151330,1740291033455,-504.40016881,0.00019899,3]
[354151331,1740291033466,-500.0,0.00019899,3]
[354151332,1740291033477,-504.93940681,0.00019899,3]
[354151333,1740291033488,-500.0,0.00019899,3]
[354151334,1740291033499,-501.69571669,0.00019899,3]
[354151335,1740291033511,-500.0,0.00019899,3]
[354151336,1740291033524,-500.0,0.00019899,3]
[354151337,1740291033536,-500.0,0.00019899,3]
[354151338,1740291033547,-627.92078385,0.00019899,3]
[354151339,1740291033558,-629.59251161,0.00019899,3]
[354151340,1740291033568,-500.0,0.00019899,3]
[354151341,1740291033579,-500.0,0.00019899,3]
[354151342,1740291033589,-503.71856544,0.00019899,3]
[354151343,1740291033603,-503.40706518,0.00019899,3]
[354151344,1740291033613,-503.03086758,0.00019899,3]
[354151345,1740291033623,-505.1174641,0.00019899,3]
[354151346,1740291033633,-247.65,0.00019899,3]
[354151347,1740291033642,-179.57,0.00019899,3]
[354151348,1740291033653,-255.12,0.00019899,3]
[354151349,1740291033663,-235.92,0.00019899,3]
[354151350,1740291033672,-500.0,0.00019899,3]
[354151351,1740291033682,-507.29819532,0.00019899,3]
[354151352,1740291033692,-511.2317209,0.00019899,3]
[354151353,1740291033701,-500.0,0.00019899,3]
[354151354,1740291033711,-175.07,0.00019899,3]
[354151355,1740291033721,-605.59144017,0.00019899,3]
[354151356,1740291033732,-189.46094585,0.00019899,3]
[354151357,1740291033744,-500.0,0.00019899,3]
[354151358,1740291033754,-504.03934386,0.00019899,3]
[354151359,1740291033764,-501.14859597,0.00019899,3]
[354151360,1740291033775,-500.0,0.00019899,3]
[354151361,1740291033787,-287.47,0.00019899,3]
[354151362,1740291033797,-256.53,0.00019899,3]
[354151363,1740291033807,-229.55,0.00019899,3]
[354151364,1740291033816,-500.0,0.00019899,3]
[354151365,1740291033826,-500.0,0.00019899,3]
[354151366,1740291033836,-502.72757821,0.00019899,3]
[354151367,1740291033846,-500.0,0.00019899,3]
[354151368,1740291033857,-500.0,0.00019899,3]
[354151369,1740291033867,-195.21,0.00019899,3]
[354151370,1740291033878,-500.0,0.00019899,3]
[354151371,1740291033888,-500.0,0.00019899,3]
[354151372,1740291033899,-500.0,0.00019899,3]
[354151373,1740291033910,-455.71033037,0.00019899,3]
[354151374,1740291033920,-500.0,0.00019899,3]
[354151375,1740291033929,-506.21752733,0.00019899,3]
[354151376,1740291033938,-500.0,0.00019899,3]
[354151377,1740291033948,-558.63132441,0.00019899,3]
[354151378,1740291033957,-500.0,0.00019899,3]
[354151379,1740291033966,-502.23156616,0.00019899,3]
[354151380,1740291033976,-516.2834768,0.00019899,3]
[354151381,1740291033985,-501.72577133,0.00019899,3]
[354151382,1740291033995,-500.0,0.00019899,3]
[354151383,1740291034005,-500.0,0.00019899,3]
[354151384,1740291034014,-500.0,0.00019899,3]
[354151385,1740291034024,-500.0,0.00019899,3]
[354151386,1740291034034,-526.23547224,0.00019899,3]
[354151387,1740291034044,-500.0,0.00019899,3]
[354151388,1740291034054,-499.99714719,0.00019899,3]
[354151389,1740291034063,-511.69719808,0.00019899,3]
[354151390,1740291034073,-501.80993804,0.00019899,3]
[354151391,1740291034083,-519.78604868,0.00019899,3]
[354151392,1740291034092,-500.0,0.00019899,3]
[354151393,1740291034102,-502.21249437,0.00019899,3]
[354151394,1740291034111,-500.0,0.00019899,3]
[354151395,1740291034121,-525.42086977,0.00019899,3]
[354151396,1740291034131,-501.90648951,0.00019899,3]
[354151397,1740291034140,-500.0,0.00019899,3]
[354151398,1740291034149,-500.0,0.00019899,3]
[354151399,1740291034323,-502.86085126,0.00019899,3]
[354151400,1740291034333,-500.0,0.00019899,3]
[354151401,1740291034343,-500.0,0.00019899,3]
[354151402,1740291034352,-500.0,0.00019899,3]
[354151403,1740291034361,-534.10102341,0.00019899,3]
[354151404,1740291034370,-644.44370747,0.00019899,3]
[354151405,1740291034379,-507.97726936,0.00019899,3]
[354151406,1740291034388,-500.0,0.00019899,3]
[354151407,1740291034397,-500.0,0.00019899,3]
[354151408,1740291034406,-500.0,0.00019899,3]
[354151409,1740291034415,-502.5804252,0.00019899,3]
[354151410,1740291034425,-500.0,0.00019899,3]
[354151411,1740291034434,-500.0,0.00019899,3]
[354151412,1740291034443,-500.0,0.00019899,3]
[354151413,1740291034452,-500.0,0.00019899,3]
[354151414,1740291034461,-500.0,0.00019899,3]
[354151415,1740291034470,-500.0,0.00019899,3]
[354151416,1740291034478,-507.59142333,0.00019899,3]
[354151417,1740291034487,-500.0,0.00019899,3]
[354151418,1740291034496,-500.0,0.00019899,3]
[354151419,1740291034505,-500.0,0.00019899,3]
[354151420,1740291034514,-500.0,0.00019899,3]
[354151421,1740291034524,-500.0,0.00019899,3]
[354151422,1740291034534,-415.69888126,0.00019899,3]
[354151423,1740291034543,-501.37958675,0.00019899,3]
[354151424,1740291034553,-500.0,0.00019899,3]
[354151425,1740291034562,-576.80605357,0.00019899,3]
[354151426,1740291034571,-500.0,0.00019899,3]
[354151427,1740291034580,-500.0,0.00019899,3]
[354151428,1740291034589,-500.0,0.00019899,3]
[354151429,1740291034599,-500.0,0.00019899,3]
[354151430,1740291034608,-500.0,0.00019899,3]
[354151431,1740291034617,-500.7494899,0.00019899,3]
[354151432,1740291034626,-500.0,0.00019899,3]
[354151433,1740291034635,-500.0,0.00019899,3]
[354151434,1740291034644,-500.0,0.00019899,3]
[354151435,1740291034654,-500.0,0.00019899,3]
[354151436,1740291034664,-500.0,0.00019899,3]
[354151437,1740291034673,-500.0,0.00019899,3]
[354151438,1740291034682,-503.86764245,0.00019899,3]
[354151439,1740291034692,-500.0,0.00019899,3]
[354151440,1740291034701,-500.82451072,0.00019899,3]
[354151441,1740291034710,-500.0,0.00019899,3]
[354151442,1740291034720,-500.72510523,0.00019899,3]
[354151443,1740291034729,-500.0,0.00019899,3]
[354151444,1740291034738,-500.0,0.00019899,3]
[354151445,1740291034747,-500.41015727,0.00019899,3]
[354151446,1740291034756,-500.0,0.00019899,3]
[354151447,1740291034765,-500.0,0.00019899,3]
[354151448,1740291034774,-500.0,0.00019899,3]
[354151449,1740291034784,-540.19017653,0.00019899,3]
[354151450,1740291034793,-500.0,0.00019899,3]
[354151451,1740291034803,-500.0,0.00019899,3]
[354151452,1740291034812,-500.0,0.00019899,3]
[354151453,1740291034821,-500.0,0.00019899,3]
[354151454,1740291034831,-500.0,0.00019899,3]
[354151455,1740291034841,-500.0,0.00019899,3]
[354151456,1740291034850,-501.04639968,0.00019899,3]
[354151457,1740291034859,-500.0,0.00019899,3]
[354151458,1740291034868,-500.0,0.00019899,3]
[354151459,1740291034877,-500.0,0.00019899,3]
[354151460,1740291034886,-500.0,0.00019899,3]
[354151461,1740291034895,-506.77941785,0.00019899,3]
[354151462,1740291034904,-500.0,0.00019899,3]
[354151463,1740291034913,-500.0,0.00019899,3]
[354151464,1740291034923,-500.2153375,0.00019899,3]
[354151465,1740291034931,-500.0,0.00019899,3]
[354151466,1740291034941,-500.0,0.00019899,3]
[354151467,1740291034950,-500.0,0.00019899,3]
[354151468,1740291034959,-500.0,0.00019899,3]
[354151469,1740291034968,-505.18015617,0.00019899,3]
[354151470,1740291034976,-500.0,0.00019899,3]
[354151471,1740291034986,-500.0,0.00019899,3]
[354151472,1740291034995,-521.35668791,0.00019899,3]
[354151473,1740291035004,-263.34103883,0.00019899,3]
[354151474,1740291035013,-500.0,0.00019899,3]
[354151475,1740291035022,-500.0,0.00019899,3]
[354151476,1740291035031,-502.87682866,0.00019899,3]
[354151477,1740291035041,-503.5136093,0.00019899,3]
[354151478,1740291035051,-500.0,0.00019899,3]
[354151479,1740291035059,-500.0,0.00019899,3]
[354151480,1740291035068,-500.0,0.00019899,3]
[354151481,1740291035077,-500.0,0.00019899,3]
[354151482,1740291035086,-500.0,0.00019899,3]
[354151483,1740291035095,-500.0,0.00019899,3]
[354151484,1740291035104,-322.65295644,0.00019899,3]
[354151485,1740291035113,-500.0,0.00019899,3]
[354151486,1740291035121,-625.05,0.00019899,3]
[354151487,1740291035130,-500.0,0.00019899,3]
[354151488,1740291035139,-500.0,0.00019899,3]
[354151489,1740291035148,-500.0,0.00019899,3]
[354151490,1740291035157,-500.0,0.00019899,3]
[354151491,1740291035166,-500.0,0.00019899,3]
[354151492,1740291035174,-500.0,0.00019899,3]
[354151493,1740291035183,-500.0,0.00019899,3]
[354151494,1740291035192,-500.0,0.00019899,3]
[354151495,1740291035201,-500.0,0.00019899,3]
[354151496,1740291035210,-500.0,0.00019899,3]
[354151497,1740291035219,-500.0,0.00019899,3]
[354151498,1740291035228,-500.0,0.00019899,3]
[354151499,1740291035242,-500.0,0.00019899,3]
[354151500,1740291035251,-500.0,0.00019899,3]
[354151501,1740291035260,-500.0,0.00019899,3]
[354151502,1740291035269,-500.0,0.00019899,3]
[354151503,1740291035278,-500.0,0.00019899,3]
[354151504,1740291035288,-500.0,0.00019899,3]
[354151505,1740291035297,-357.95830455,0.00019899,3]
[354151506,1740291035307,-500.0,0.00019899,3]
[354151507,1740291035316,-500.0,0.00019899,3]
[354151508,1740291035326,-500.0,0.00019899,3]
[354151509,1740291035335,-500.0,0.00019899,3]
[354151510,1740291035344,-500.0,0.00019899,3]
[354151511,1740291035354,-504.48393407,0.00019899,3]
[354151512,1740291035363,-251.66896117,0.00019899,3]
[354151513,1740291035372,-500.0,0.00019899,3]
[354151514,1740291035382,-500.0,0.00019899,3]
[354151515,1740291035391,-500.0,0.00019899,3]
[354151516,1740291035399,-500.0,0.00019899,3]
[354151517,1740291035408,-500.0,0.00019899,3]
[354151518,1740291035418,-611.83,0.00019899,3]
[354151519,1740291035427,-505.95058796,0.00019899,3]
[354151520,1740291035435,-500.0,0.00019899,3]
[354151521,1740291035444,-500.0,0.00019899,3]
[354151522,1740291035453,-500.0,0.00019899,3]
[354151523,1740291035461,-440.19099306,0.00019899,3]
[354151524,1740291035470,-500.0,0.00019899,3]
[354151525,1740291035479,-500.0,0.00019899,3]
[354151526,1740291035488,-500.0,0.00019899,3]
[354151527,1740291035497,-500.0,0.00019899,3]
[354151528,1740291035505,-500.0,0.00019899,3]
[354151529,1740291035514,-500.0,0.00019899,3]
[354151530,1740291035523,-500.0,0.00019899,3]
[354151531,1740291035532,-500.0,0.00019899,3]
[354151532,1740291035542,-500.0,0.00019899,3]
[354151533,1740291035551,-500.0,0.00019899,3]
[354151534,1740291035560,-500.0,0.00019899,3]
[354151535,1740291035569,-500.0,0.00019899,3]
[354151536,1740291035578,-500.0,0.00019899,3]
[354151537,1740291035586,-500.0,0.00019899,3]
[354151538,1740291035595,-500.0,0.00019899,3]
[354151539,1740291035604,-500.0,0.00019899,3]
[354151540,1740291035613,-500.0,0.00019899,3]
[354151541,1740291035622,-502.07826405,0.00019899,3]
[354151542,1740291035632,-500.0,0.00019899,3]
[354151543,1740291035641,-500.0,0.00019899,3]
[354151544,1740291035650,-500.0,0.00019899,3]
[354151545,1740291035659,-500.0,0.00019899,3]
[354151546,1740291035668,-500.0,0.00019899,3]
[354151547,1740291035677,-500.0,0.00019899,3]
[354151548,1740291035686,-500.0,0.00019899,3]
[354151549,1740291035695,-500.0,0.00019899,3]
[354151550,1740291035704,-500.0,0.00019899,3]
[354151551,1740291035713,-500.0,0.00019899,3]
[354151552,1740291035721,-500.0,0.00019899,3]
[354151553,1740291035730,-500.0,0.00019899,3]
[354151554,1740291035739,-500.0,0.00019899,3]
[354151555,1740291035748,-500.0,0.00019899,3]
[354151556,1740291035758,-500.0,0.00019899,3]
[354151557,1740291035767,-601.28,0.00019899,3]
[354151558,1740291035776,-500.0,0.00019899,3]
[354151559,1740291035785,-500.0,0.00019899,3]
[354151560,1740291035794,-500.0,0.00019899,3]
[354151561,1740291035803,-500.0,0.00019899,3]
[354151562,1740291035812,-526.54785013,0.00019899,3]
[354151563,1740291035822,-500.0,0.00019899,3]
[354151564,1740291035831,-500.0,0.00019899,3]
[354151565,1740291035840,-525.09,0.00019899,3]
[354151566,1740291035849,-500.0,0.00019899,3]
[354151567,1740291035858,-500.0,0.00019899,3]
[354151568,1740291035866,-500.0,0.00019899,3]
[354151569,1740291035876,-500.0,0.00019899,3]
[354151570,1740291035884,-500.0,0.00019899,3]
[354151571,1740291035894,-522.95,0.00019899,3]
[354151572,1740291035903,-500.0,0.00019899,3]
[354151573,1740291035911,-500.0,0.00019899,3]
[354151574,1740291035921,-500.0,0.00019899,3]
[354151575,1740291035930,-500.0,0.00019899,3]
[354151576,1740291035939,-508.50401373,0.00019899,3]
[354151577,1740291035947,-500.0,0.00019899,3]
[354151578,1740291035956,-500.0,0.00019899,3]
[354151579,1740291035965,-500.0,0.00019899,3]
[354151580,1740291035974,-500.0,0.00019899,3]
[354151581,1740291035983,-500.0,0.00019899,3]
[354151582,1740291035992,-501.06773994,0.00019899,3]
[354151583,1740291036001,-500.0,0.00019899,3]
[354151584,1740291036010,-500.0,0.00019899,3]
[354151585,1740291036019,-500.80386133,0.00019899,3]
[354151586,1740291036028,-500.0,0.00019899,3]
[354151587,1740291036038,-191.65264936,0.00019899,3]
[354151588,1740291036047,-500.0,0.00019899,3]
[354151589,1740291036056,-500.0,0.00019899,3]
[354151590,1740291036065,-500.0,0.00019899,3]
[354151591,1740291036074,-500.0,0.00019899,3]
[354151592,1740291036083,-241.19040521,0.00019899,3]
[354151593,1740291036092,-309.57899887,0.00019899,3]
[354151594,1740291036101,-500.0,0.00019899,3]
[354151595,1740291036111,-500.0,0.00019899,3]
[354151596,1740291036119,-500.0,0.00019899,3]
[354151597,1740291036128,-500.0,0.00019899,3]
[354151598,1740291036138,-209.51124095,0.00019899,3]
[354151599,1740291036147,-500.0,0.00019899,3]
[354151600,1740291036155,-510.18390105,0.00019899,3]
[354151601,1740291036165,-248.39740725,0.00019899,2]
[354151602,1740291036174,-504.44,0.000199,2]
[354151603,1740291036183,-2465.7317,0.000199,2]
[354151604,1740291036192,-3410.7325,0.000199,2]
[354151605,1740291036201,-85771.8814,0.000199,2]
[354151606,1740291036210,-164.37018894,0.000199,2]
[354151607,1740291036220,-8024.305894,0.000199,2]
[354151608,1740291036229,-203.9,0.000199,2]
[354151609,1740291036240,-500.020452,0.000199,2]
[354151610,1740291036250,-179.3636606,0.000199,2]
[354151611,1740291036259,-312.68611574,0.00019918,2]
[354151612,1740291036268,-300.0,0.00019919,2]
[354151613,1740291036278,-150.0,0.00019954,2]
[354151614,1740291036287,-164.20685871,0.00019954,2]
[354151615,1740291036296,-312.68611574,0.00019957,2]
[354151616,1740291036305,-150.0,0.00019961,2]
[354151617,1740291036316,-164.37018893,0.00019963,2]
[354151618,1740291036326,-159.49150104,0.00019973,2]
[354151619,1740291036336,-150.0,0.00019979,2]
[354151620,1740291036346,-233952.633966,0.0001998,3]
[354151621,1740291036355,-644.54305717,0.00019981,3]
[354151622,1740291036365,-380.92226794,0.00019981,3]
[354151623,1740291036374,-503.06878999,0.00019981,3]
[354151624,1740291036383,-502.51300915,0.00019981,3]
[354151625,1740291036392,-500.0,0.00019981,3]
[354151626,1740291036402,-443.80526103,0.00019981,3]
[354151627,1740291036411,-500.0,0.00019981,3]
[354151628,1740291036420,-504.46801109,0.00019981,3]
[354151629,1740291036430,-500.65977523,0.00019981,3]
[354151630,1740291036439,-500.0,0.00019981,3]
[354151631,1740291036448,-500.0,0.00019981,3]
[354151632,1740291036458,-500.0,0.00019981,3]
[354151633,1740291036467,-500.0,0.00019981,3]
[354151634,1740291036476,-500.0,0.00019981,3]
[354151635,1740291036485,-319.75265043,0.00019981,3]
[354151636,1740291036495,-1830.00975909,0.00019989,5]
[354151637,1740291036504,-150.79,0.0001999,2]
[354151638,1740291036513,-150.79,0.0001999,2]
[354151639,1740291036522,-150.79,0.0001999,2]
[354151640,1740291036531,-500.0,0.00019995,3]
[354151641,1740291036540,-500.0,0.00019995,3]
[354151642,1740291036549,-177.2613544,0.00019996,2]
[354151643,1740291036558,-2310.0374225,0.00019996,2]
[354151644,1740291036567,-967.2312181,0.00019996,2]
[354151645,1740291036576,-715.7429497,0.00019996,2]
[354151646,1740291036585,-312.68611574,0.00019997,2]
[354151647,1740291036595,-503.0241867,0.00019999,3]
[354151648,1740291036604,-1130.07,0.00019999,2]
[354151649,1740291036613,-500.0,0.00019999,3]
[354151650,1740291036622,-500.0,0.00019999,3]
[354151651,1740291036631,-500.0,0.00019999,3]
[354151652,1740291036640,-676.0,0.0002,2]
[354151653,1740291036649,-201875.51659611,0.0002,30]
[354151654,1740291036694,-1643.91621459,0.0002,30]
[354151655,1740291036705,-1026.39824093,0.0002,30]
[354151656,1740291036716,-990.42750928,0.0002,30]
[354151719,1740291038655,-652.34016614,0.0002,30]
[354151720,1740291038672,-1372.6227422,0.0002,30]
[354151721,1740291038683,-472.12295122,0.0002,30]
[354151722,1740291038695,-658591.08279568,0.0002,30]
[354151724,1740291038704,-150.69110324,0.0002,7]
[354151726,1740291038713,-2000.2243,0.0002,2]
[354151728,1740291038722,-2000.0,0.0002,2]
[354151730,1740291038731,-2000.0,0.0002,2]